bitfinex-derivatives/quotes_SOLF0:USTF0_20250614
["timestamp","ask_amount","ask_price","bid_price","bid_amount"]
[1749879603965,6.8142,146.69,146.66,6.8153]
[1749879604160,6.8142,146.69,146.66,6.86068749]
[1749879604659,8.68690551,146.7,146.66,6.86068749]
[1749879604860,1.87300551,146.7,146.66,6.86068749]
[1749879605263,8.68690551,146.7,146.66,6.86068749]
[1749879605667,1.87300551,146.7,146.66,6.86068749]
[1749879606464,1.87300551,146.69,146.66,6.86068749]
[1749879606664,8.68730551,146.69,146.66,6.86068749]
[1749879607164,6.8143,146.69,146.66,6.86068749]
[1749879607969,8.68680551,146.7,146.66,6.86068749]
[1749879609969,6.8141,146.69,146.66,6.86068749]
[1749879613861,6.8141,146.69,146.66,0.04538749]
[1749879615670,8.68710551,146.69,146.66,0.04538749]
[1749879616675,8.68710551,146.69,146.66,6.86088749]
[1749879617279,6.8141,146.69,146.66,6.86088749]
[1749879617480,8.68690551,146.7,146.66,6.86088749]
[1749879618983,8.68690551,146.7,146.66,8.733893]
[1749879619184,8.68690551,146.7,146.66,6.86088749]
[1749879620089,6.8142,146.69,146.66,6.86088749]
[1749879622697,8.68680551,146.7,146.66,6.86088749]
[1749879622890,8.68690994,146.7,146.66,6.86088749]
[1749879623193,1.87310994,146.7,146.67,6.8148]
[1749879623396,35.6615,146.73,146.67,6.8148]
[1749879623397,35.33310994,146.73,146.67,1.87310994]
[1749879623694,35.33224646,146.73,146.68,1.87224646]
[1749879623894,6.32532059,146.76,146.69,1.91596684]
[1749879624088,1.87224646,146.74,146.69,1.91596684]
[1749879624796,8.68434646,146.74,146.7,6.8134]
[1749879625289,8.68434646,146.74,146.7,8.68564646]
[1749879629197,8.68434646,146.74,146.7,1.87224646]
[1749879629390,6.8121,146.74,146.7,1.87224646]
[1749879629899,6.8121,146.74,146.7,6.8135]
[1749879630098,6.8121,146.74,146.7,8.68574646]
[1749879636400,1.87224646,146.75,146.7,8.68574646]
[1749879636401,6.8123,146.73,146.7,8.68574646]
[1749879638202,6.812,146.74,146.7,8.68574646]
[1749879639806,6.8123,146.73,146.7,8.68574646]
[1749879640001,1.87224646,146.73,146.69,35.29596684]
[1749879640202,33.38,146.76,146.69,33.42372038]
[1749879640203,1.87224646,146.71,146.69,33.42372038]
[1749879640402,8.68564646,146.71,146.69,33.42372038]
[1749879641896,6.8134,146.71,146.69,33.42372038]
[1749879642312,8.68524646,146.72,146.69,33.42372038]
[1749879643606,8.68524646,146.72,146.69,40.23782038]
[1749879645212,1.87224646,146.72,146.7,6.8136]
[1749879645406,8.68454646,146.73,146.7,6.8136]
[1749879646014,1.87224646,146.72,146.7,6.8136]
[1749879646310,1.87224646,146.72,146.69,40.23772038]
[1749879646904,8.68504646,146.72,146.69,40.23772038]
[1749879648514,1.87224646,146.72,146.69,40.23772038]
[1749879649209,1.87224646,146.73,146.69,35.29596684]
[1749879649407,1.87224646,146.74,146.7,1.87224646]
[1749879649806,1.87224646,146.74,146.71,6.813]
[1749879652216,8.68414646,146.74,146.71,6.813]
[1749879653710,8.68414646,146.74,146.7,8.68574646]
[1749879655915,8.68414646,146.74,146.7,6.8135]
[1749879667719,8.68414646,146.74,146.71,6.813]
[1749879670222,1.87224646,146.74,146.72,6.8127]
[1749879670520,1.87224646,146.74,146.69,43.79285387]
[1749879670818,1.87224646,146.76,146.71,1.87224646]
[1749879671017,1.87224646,146.77,146.73,1.87224646]
[1749879671911,1.87224646,146.77,146.74,6.8116]
[1749879673726,8.68274646,146.77,146.74,6.8116]
[1749879674421,8.68234646,146.78,146.75,6.8113]
[1749879674610,8.68234646,146.78,146.75,6.85996098]
[1749879677123,8.68234646,146.78,146.75,0.04866098]
[1749879678832,8.68234646,146.78,146.75,6.85996098]
[1749879680519,6.8105,146.77,146.75,0.04866098]
[1749879680829,1.87224646,146.78,146.75,0.04866098]
[1749879681231,8.68264646,146.78,146.75,0.04866098]
[1749879682134,6.8104,146.78,146.75,0.04866098]
[1749879682327,8.68264646,146.78,146.75,0.04866098]
[1749879683435,6.8108,146.77,146.75,0.04866098]
[1749879683733,1.87224646,146.76,146.75,0.04866098]
[1749879684328,6.8109,146.76,146.75,0.04866098]
[1749879699444,8.68284646,146.77,146.75,0.04866098]
[1749879700742,6.8109,146.76,146.75,0.04866098]
[1749879703258,1.87224646,146.77,146.75,0.04866098]
[1749879703259,8.68284646,146.77,146.75,0.04866098]
[1749879705860,6.8106,146.77,146.75,0.04866098]
[1749879706063,1.87224646,146.77,146.75,6.85996098]
[1749879707359,1.87224646,146.77,146.75,0.04866098]
[1749879707561,8.68234646,146.78,146.75,0.04866098]
[1749879708356,1.87224646,146.78,146.75,0.04866098]
[1749879708553,1.87224646,146.79,146.75,0.04866098]
[1749879708953,8.68144646,146.79,146.76,6.8105]
[1749879714362,1.87224646,146.79,146.77,6.81]
[1749879715164,8.68154646,146.79,146.76,6.8104]
[1749879717261,8.68154646,146.79,146.75,6.85946098]
[1749879718063,6.8093,146.79,146.75,6.85946098]
[1749879718863,8.68154646,146.79,146.75,6.85946098]
[1749879719962,8.68154646,146.79,146.75,8.73170744]
[1749879720958,8.68154646,146.79,146.75,1.92090744]
[1749879721762,8.68154646,146.79,146.75,8.73200744]
[1749879723864,6.8093,146.79,146.76,6.8108]
[1749879724062,1.87224646,146.79,146.75,1.92090744]
[1749879724261,1.87224646,146.79,146.75,8.54554801]
[1749879724565,8.68174646,146.79,146.76,6.8106]
[1749879725157,1.87224646,146.79,146.76,6.8106]
[1749879727462,6.8093,146.8,146.76,6.8106]
[1749879727664,1.87224646,146.79,146.76,6.8106]
[1749879732977,6.8088,146.81,146.77,6.8101]
[1749879733167,8.68104646,146.81,146.78,0.05243561]
[1749879735176,1.87224646,146.8,146.78,0.05243561]
[1749879736674,8.68134646,146.8,146.78,0.05243561]
[1749879737673,1.87224646,146.8,146.78,0.05243561]
[1749879737872,1.87224646,146.79,146.78,0.05243561]
[1749879739677,8.68174646,146.79,146.78,0.05243561]
[1749879742283,6.8095,146.79,146.78,0.05243561]
[1749879742486,8.68174646,146.79,146.78,0.05243561]
[1749879742687,8.68154646,146.8,146.78,0.05243561]
[1749879744181,6.8095,146.79,146.78,0.05243561]
[1749879745090,8.68144646,146.8,146.78,0.05243561]
[1749879750099,1.87224646,146.8,146.78,0.05243561]
[1749879750895,1.87224646,146.8,146.78,6.86223561]
[1749879751298,8.68104646,146.81,146.78,6.86223561]
[1749879751694,2.1878,146.83,146.79,6.8092]
[1749879751902,35.21224646,146.85,146.79,35.21224646]
[1749879752098,4.69048736,146.84,146.81,0.04597632]
[1749879752299,35.21224646,146.85,146.81,0.04597632]
[1749879752497,1.87224646,146.85,146.81,0.04597632]
[1749879752798,6.8072,146.84,146.81,6.85417632]
[1749879754611,6.8068,146.85,146.81,6.85417632]
[1749879754905,8.67904646,146.85,146.81,6.85417632]
[1749879757310,6.8072,146.84,146.81,6.85417632]
[1749879757504,1.87224646,146.84,146.81,6.85417632]
[1749879758206,1.87224646,146.84,146.82,6.8081]
[1749879758407,1.87224646,146.87,146.82,1.87224646]
[1749879758712,35.21224646,146.88,146.83,1.92159361]
[1749879758905,4.70680319,146.87,146.83,35.24159361]
[1749879759105,1.87224646,146.88,146.83,35.24159361]
[1749879759810,6.8059,146.87,146.84,6.807]
[1749879760308,1.87224646,146.9,146.83,33.36934715]
[1749879760513,1.87224646,146.88,146.85,0.04298145]
[1749879760711,1.87224646,146.86,146.85,0.04298145]
[1749879761114,33.32,146.89,146.85,0.04298145]
[1749879761318,8.67844646,146.86,146.85,0.04298145]
[1749879763113,33.32,146.89,146.85,0.04298145]
[1749879763410,6.8058,146.87,146.85,0.04298145]
[1749879764620,6.8062,146.86,146.85,0.04298145]
[1749879768726,8.67844646,146.86,146.85,0.04298145]
[1749879772734,1.87224646,146.86,146.85,0.04298145]
[1749879773834,8.67844646,146.86,146.85,0.04298145]
[1749879774638,6.8062,146.86,146.85,0.04298145]
[1749879775934,8.67844646,146.86,146.85,0.04298145]
[1749879780738,6.8078,146.83,146.81,33.32]
[1749879780936,1.87224646,146.82,146.78,33.3]
[1749879781240,13.6089,146.9,146.78,33.3]
[1749879781241,35.6529,146.85,146.78,33.3]
[1749879781540,1.87224646,146.8,146.78,33.3]
[1749879781933,1.92143449,146.8,146.78,33.34958929]
[1749879782325,0.04918803,146.8,146.78,33.34958929]
[1749879787143,6.85828803,146.8,146.78,33.34958929]
[1749879789942,8.73053449,146.8,146.78,33.34958929]
[1749879790547,0.04918803,146.8,146.78,33.34958929]
[1749879792348,6.85828803,146.8,146.78,33.34958929]
[1749879793045,8.73053449,146.8,146.78,33.34958929]
[1749879797453,6.85828803,146.8,146.78,33.34958929]
[1749879797752,8.73053449,146.8,146.78,33.34958929]
[1749879799046,0.04918803,146.8,146.79,6.8095]
[1749879800045,0.04918803,146.8,146.78,42.03153575]
[1749879800349,0.04918803,146.8,146.78,40.15928929]
[1749879805862,1.92143449,146.8,146.78,33.34958929]
[1749879806053,1.87224646,146.79,146.78,33.34958929]
[1749879807555,8.68174646,146.79,146.78,0.04958929]
[1749879817171,1.87224646,146.79,146.78,0.04958929]
[1749879817365,8.73063449,146.8,146.78,0.04958929]
[1749879817562,0.04918803,146.8,146.78,0.04958929]
[1749879818767,0.04918803,146.8,146.78,6.85928929]
[1749879818967,0.04918803,146.8,146.78,1.92183575]
[1749879820774,0.04918803,146.8,146.79,6.8095]
[1749879823470,0.04918803,146.8,146.79,8.68174646]
[1749879823679,35.17224646,146.84,146.81,6.8085]
[1749879823976,1.87224646,146.84,146.8,1.87224646]
[1749879824577,6.8077,146.83,146.8,8.68104646]
[1749879824773,6.8077,146.83,146.8,6.85268318]
[1749879829778,8.67994646,146.83,146.8,6.85268318]
[1749879831580,6.8081,146.82,146.8,0.04388318]
[1749879831782,1.87224646,146.81,146.8,0.04388318]
[1749879832578,8.68084646,146.81,146.8,0.04388318]
[1749879844491,1.87224646,146.81,146.8,0.04388318]
[1749879846795,1.86992714,146.82,146.8,6.85288318]
[1749879846996,1.86992714,146.83,146.8,0.04388318]
[1749879847393,1.86992714,146.83,146.8,6.85268318]
[1749879848397,8.67782714,146.83,146.8,6.85268318]
[1749879848595,1.86992714,146.81,146.8,0.04388318]
[1749879849098,1.86992714,146.82,146.8,0.04388318]
[1749879850092,8.67832714,146.82,146.8,0.04388318]
[1749879852496,1.86992714,146.84,146.8,0.04388318]
[1749879853004,1.86992714,146.84,146.81,6.8085]
[1749879853899,8.67712714,146.84,146.81,6.8085]
[1749879854713,8.6764684,146.84,146.81,6.8085]
[1749879855708,6.8069,146.85,146.82,6.8078]
[1749879855906,1.8692684,146.85,146.82,6.85368915]
[1749879856106,1.8692684,146.84,146.82,0.04588915]
[1749879856403,8.6766684,146.84,146.82,0.04588915]
[1749879859599,8.6760684,146.85,146.82,6.85388915]
[1749879860709,1.8692684,146.85,146.83,6.8076]
[1749879862011,6.8063,146.86,146.83,6.8076]
[1749879862199,33.3,146.87,146.84,6.807]
[1749879862200,6.806,146.87,146.84,6.807]
[1749879862405,1.8692684,146.86,146.82,0.04588915]
[1749879862605,1.8692684,146.86,146.83,6.8072]
[1749879863315,8.6755684,146.86,146.83,6.8072]
[1749879864210,8.6755684,146.86,146.82,8.72305755]
[1749879864408,1.8692684,146.85,146.82,0.04588915]
[1749879864607,1.8692684,146.84,146.82,0.04588915]
[1749879866716,1.8692684,146.84,146.82,6.85398915]
[1749879867217,6.8071,146.85,146.82,6.85398915]
[1749879867415,8.6763684,146.85,146.82,6.85398915]
[1749879869418,6.8071,146.85,146.82,6.85398915]
[1749879869618,8.6763684,146.85,146.82,6.85398915]
[1749879869915,6.8071,146.85,146.82,6.85398915]
[1749879870127,8.6763684,146.85,146.82,6.85398915]
[1749879873118,6.8076,146.83,146.82,0.04588915]
[1749879873313,8.6768684,146.83,146.82,0.04588915]
[1749879874622,1.8692684,146.83,146.82,0.04588915]
[1749879874917,33.3,146.86,146.82,0.04588915]
[1749879874918,1.8692684,146.85,146.82,0.04588915]
[1749879875112,1.8692684,146.85,146.82,6.85378915]
[1749879875309,8.6761684,146.85,146.82,6.85378915]
[1749879877224,6.8069,146.85,146.82,6.85378915]
[1749879882722,35.6484,146.89,146.83,6.8076]
[1749879882929,2.92065938,146.87,146.83,6.8076]
[1749879883122,2.92065938,146.87,146.82,0.04588915]
[1749879883827,6.8065,146.86,146.82,6.85358915]
[1749879884029,2.92065938,146.87,146.82,6.85358915]
[1749879884430,6.8065,146.86,146.82,6.85358915]
[1749879885120,6.8068,146.85,146.82,6.85358915]
[1749879893132,6.8064,146.86,146.83,6.8076]
[1749879893332,2.92065938,146.87,146.82,0.04588915]
[1749879894640,9.72685938,146.87,146.83,6.8074]
[1749879894839,9.72685938,146.87,146.82,0.04588915]
[1749879896440,9.72685938,146.87,146.83,6.8073]
[1749879896742,9.72685938,146.87,146.82,0.04588915]
[1749879897244,1.86893509,146.86,146.82,0.04588915]
[1749879897645,1.86893509,146.86,146.83,6.8075]
[1749879897940,8.67513509,146.86,146.83,6.8075]
[1749879899647,1.86893509,146.85,146.83,6.8075]
[1749879901450,1.86893509,146.85,146.84,6.8072]
[1749879901852,1.86893509,146.85,146.82,33.32588915]
[1749879902751,1.86893509,146.85,146.83,6.8074]
[1749879905249,1.86893509,146.85,146.84,6.8072]
[1749879905651,1.86893509,146.86,146.84,6.8072]
[1749879907351,6.806,146.87,146.84,6.8072]
[1749879907539,1.86893509,146.86,146.84,6.8072]
[1749879911554,8.67523509,146.86,146.83,6.8074]
[1749879911853,1.86893509,146.85,146.83,6.8074]
[1749879915260,1.86864524,146.89,146.84,1.86864524]
[1749879915461,4.72299252,146.88,146.85,0.05118598]
[1749879915657,1.86864524,146.89,146.85,0.05118598]
[1749879915858,1.86846297,146.87,146.85,6.85758598]
[1749879920960,8.67396297,146.88,146.85,6.85758598]
[1749879921661,35.5549,146.92,146.85,6.85758598]
[1749879921662,8.67426297,146.87,146.85,0.05118598]
[1749879923155,1.86846297,146.87,146.85,0.05118598]
[1749879923359,1.86846297,146.88,146.85,6.85778598]
[1749879923554,1.86846297,146.89,146.85,6.85778598]
[1749879923856,6.8051,146.89,146.85,6.85778598]
[1749879924062,1.86846297,146.9,146.85,1.91964895]
[1749879924563,8.67286297,146.9,146.86,6.8059]
[1749879925065,6.805,146.89,146.86,6.8059]
[1749879925362,8.67346297,146.89,146.86,6.8059]
[1749879925564,1.86846297,146.88,146.86,6.8059]
[1749879925964,8.67346297,146.89,146.86,6.8059]
[1749879929972,6.805,146.89,146.86,6.8059]
[1749879930166,8.67346297,146.89,146.86,6.8059]
[1749879933574,1.86846297,146.89,146.87,6.8055]
[1749879933769,8.67296297,146.9,146.87,6.8055]
[1749879935273,1.86846297,146.89,146.87,6.8055]
[1749879935574,8.67326297,146.89,146.87,6.8055]
[1749879936166,6.8045,146.9,146.87,6.8055]
[1749879936372,1.86846297,146.89,146.87,6.85623672]
[1749879938573,8.67296297,146.9,146.87,6.85623672]
[1749879940375,1.86846297,146.89,146.87,6.85623672]
[1749879940676,8.67296297,146.9,146.87,6.85623672]
[1749879942271,1.86846297,146.9,146.87,6.85623672]
[1749879942472,1.86846297,146.92,146.87,1.91919969]
[1749879942770,1.86846297,146.93,146.88,1.86846297]
[1749879942977,8.67176297,146.93,146.89,6.85222905]
[1749879943275,1.86846297,146.93,146.89,6.85222905]
[1749879943673,1.86846297,146.92,146.89,0.04762905]
[1749879943877,1.86846297,146.91,146.89,0.04762905]
[1749879944477,1.86846297,146.91,146.89,6.85242905]
[1749879944979,8.67216297,146.92,146.89,6.85242905]
[1749879945581,6.8037,146.92,146.89,6.85242905]
[1749879945775,8.67216297,146.92,146.89,6.85242905]
[1749879947175,1.86846297,146.92,146.89,0.04762905]
[1749879947380,8.67156297,146.93,146.9,6.8041]
[1749879947679,8.67156297,146.93,146.89,1.91609202]
[1749879947680,1.86846297,146.93,146.89,1.91609202]
[1749879947870,1.86846297,146.93,146.9,6.804]
[1749879949384,1.86846297,146.93,146.89,8.72089202]
[1749879950081,6.8036,146.92,146.89,8.72089202]
[1749879950383,1.86846297,146.93,146.89,8.72089202]
[1749879950986,1.86846297,146.93,146.89,6.85242905]
[1749879951684,8.67176297,146.93,146.89,6.85242905]
[1749879952784,6.8036,146.92,146.89,6.85242905]
[1749879953286,8.67156297,146.93,146.9,6.8044]
[1749879955784,8.67156297,146.93,146.9,40.0644]
[1749879956085,6.8031,146.93,146.9,40.0644]
[1749879960590,8.67156297,146.93,146.9,40.0644]
[1749879960888,1.86846297,146.91,146.89,0.04762905]
[1749879961190,1.86846297,146.9,146.89,0.04762905]
[1749879961388,8.67286297,146.9,146.89,0.04762905]
[1749879966786,6.8044,146.9,146.89,0.04762905]
[1749879967090,6.8041,146.91,146.89,0.04762905]
[1749879967789,6.8036,146.92,146.89,6.85242905]
[1749879968086,8.67206297,146.92,146.89,6.85242905]
[1749879968290,8.67206297,146.92,146.89,8.72089202]
[1749879969693,6.8036,146.92,146.89,8.72089202]
[1749879969992,6.804,146.91,146.89,1.91609202]
[1749879970394,1.86846297,146.92,146.89,0.04762905]
[1749879971196,6.8039,146.91,146.89,0.04762905]
[1749879972595,8.67236297,146.91,146.89,0.04762905]
[1749879975696,6.8039,146.91,146.89,0.04762905]
[1749879976200,6.8044,146.9,146.89,0.04762905]
[1749879980402,1.86846297,146.92,146.89,0.04762905]
[1749879981592,8.67226297,146.92,146.89,6.85232905]
[1749879982001,6.8038,146.92,146.89,6.85232905]
[1749879982305,8.67037732,146.93,146.9,6.8043]
[1749879983598,6.8032,146.93,146.9,6.8043]
[1749879984401,8.66979649,146.94,146.9,6.8043]
[1749879984805,8.66979649,146.94,146.91,6.8039]
[1749879985300,8.66979649,146.94,146.9,6.8041]
[1749879985498,8.66979649,146.94,146.9,8.67109649]
[1749879986201,8.66979649,146.94,146.91,6.8039]
[1749879987197,6.8028,146.94,146.91,6.8039]
[1749879987403,8.66979649,146.94,146.91,6.8039]
[1749879987905,8.66979649,146.94,146.9,8.67109649]
[1749879988106,8.66979649,146.94,146.9,1.86699649]
[1749879988704,6.8028,146.94,146.91,6.8037]
[1749879991796,6.8028,146.94,146.9,8.67119649]
[1749879992004,8.66979649,146.94,146.9,8.67119649]
[1749879992206,8.66979649,146.94,146.9,6.8042]
[1749879992406,6.8031,146.93,146.9,6.8042]
[1749879995904,35.4242,146.97,146.9,1.86699649]
[1749879996106,1.86699649,146.93,146.92,0.0435591]
[1749879996606,8.66999649,146.93,146.92,5.91e-05]
[1749879998009,0.0435,146.94,146.92,5.91e-05]
[1749879998211,1.86699649,146.93,146.92,5.91e-05]
[1749879998711,8.66999649,146.93,146.92,5.91e-05]
[1749879999310,6.803,146.93,146.92,5.91e-05]
[1749879999505,8.66999649,146.93,146.92,5.91e-05]
[1749880000412,6.803,146.93,146.92,5.91e-05]
[1749880000611,8.66999649,146.93,146.92,5.91e-05]
[1749880008115,6.803,146.93,146.92,5.91e-05]
[1749880008313,8.66999649,146.93,146.92,5.91e-05]
[1749880011815,6.803,146.93,146.92,5.91e-05]
[1749880012017,8.66999649,146.93,146.92,5.91e-05]
[1749880012515,49.3051508,146.93,146.92,5.91e-05]
[1749880012718,1.86699649,146.89,146.87,33.26]
[1749880012908,1.86699649,146.9,146.87,33.26]
[1749880013106,6.8051,146.89,146.87,33.26]
[1749880013614,6.8486591,146.89,146.87,33.31184476]
[1749880014015,6.8486591,146.89,146.87,40.11744476]
[1749880016317,6.8486591,146.89,146.87,33.31184476]
[1749880018726,6.8053,146.88,146.87,33.31184476]
[1749880018910,6.8053,146.88,146.87,0.05184476]
[1749880022413,8.71555559,146.89,146.87,0.05184476]
[1749880022619,6.8485591,146.89,146.87,0.05184476]
[1749880023021,0.0435591,146.89,146.87,6.85754476]
[1749880024023,0.0435591,146.89,146.88,6.8053]
[1749880024524,0.0435591,146.89,146.87,8.72434125]
[1749880025125,0.0435591,146.89,146.88,6.8053]
[1749880026928,0.0435591,146.89,146.88,8.67229649]
[1749880030629,0.0435591,146.89,146.88,6.8053]
[1749880034332,0.0435591,146.89,146.87,41.98444125]
[1749880035433,0.0435591,146.89,146.88,6.8053]
[1749880035930,0.0435591,146.89,146.87,35.17884125]
[1749880036129,0.0435591,146.89,146.87,33.31184476]
[1749880037032,0.0435591,146.89,146.87,40.11734476]
[1749880038030,0.0435591,146.89,146.88,6.8053]
[1749880042942,0.0435591,146.89,146.87,40.11734476]
[1749880053043,6.8484591,146.89,146.87,40.11734476]
[1749880054946,0.0435591,146.89,146.88,6.8051]
[1749880055240,0.0435591,146.89,146.87,33.31184476]
[1749880055744,0.0435591,146.89,146.87,40.11704476]
[1749880056146,0.0435591,146.89,146.88,6.8051]
[1749880059648,0.0435591,146.89,146.88,8.67209649]
[1749880060739,0.0435591,146.89,146.88,17.15522844]
[1749880061447,0.0435591,146.89,146.88,15.28823195]
[1749880061647,0.0435591,146.89,146.88,8.67209649]
[1749880071947,0.0435591,146.89,146.88,6.8051]
[1749880072143,0.0435591,146.89,146.88,8.67209649]
[1749880078658,0.0435591,146.89,146.88,6.8051]
[1749880078963,0.0435591,146.89,146.88,8.67209649]
[1749880089277,4.15129649,146.97,146.88,1.86699649]
[1749880089477,4.15129649,146.97,146.92,1.86699649]
[1749880089879,6.8021,146.96,146.92,8.67039649]
[1749880090075,6.8021,146.96,146.93,0.04637314]
[1749880090275,6.8021,146.96,146.93,1.91336963]
[1749880090476,6.8021,146.95,146.93,1.91336963]
[1749880091082,6.8021,146.95,146.93,0.04637314]
[1749880091977,8.66909649,146.95,146.93,0.04637314]
[1749880092178,6.8021,146.95,146.93,0.04637314]
[1749880093380,6.8017,146.96,146.93,6.84927314]
[1749880095379,6.8017,146.96,146.93,8.71626963]
[1749880096086,6.8017,146.96,146.94,1.86699649]
[1749880096280,6.8017,146.96,146.93,8.71626963]
[1749880096585,6.8017,146.96,146.93,6.84927314]
[1749880096785,6.8017,146.96,146.93,8.71626963]
[1749880096987,6.8013,146.97,146.93,8.71626963]
[1749880097178,8.66829649,146.97,146.93,8.71626963]
[1749880098286,8.66829649,146.97,146.94,6.8025]
[1749880098990,6.8013,146.97,146.94,6.8025]
[1749880099182,6.8017,146.96,146.93,6.84927314]
[1749880099379,1.86699649,146.95,146.93,0.04637314]
[1749880099680,1.86699649,146.94,146.93,0.04637314]
[1749880099881,2.2013,146.97,146.93,0.04637314]
[1749880099882,8.66919649,146.95,146.93,0.04637314]
[1749880103492,6.8022,146.95,146.93,0.04637314]
[1749880103691,8.66879649,146.96,146.93,6.84927314]
[1749880103992,1.86699649,146.96,146.93,0.04637314]
[1749880104294,8.66869649,146.96,146.93,0.04637314]
[1749880104591,1.86699649,146.96,146.93,0.04637314]
[1749880104992,6.8021,146.95,146.93,0.04637314]
[1749880106998,6.8021,146.95,146.93,6.84927314]
[1749880107297,6.8017,146.96,146.93,6.84927314]
[1749880108699,4.06829649,146.97,146.93,0.04637314]
[1749880109099,1.86699649,146.96,146.93,0.04637314]
[1749880109295,6.8021,146.95,146.93,6.84927314]
[1749880110500,6.8021,146.95,146.93,0.04637314]
[1749880111902,6.8025,146.94,146.93,0.04637314]
[1749880118913,8.66939649,146.95,146.93,0.04637314]
[1749880119307,1.86699649,146.95,146.93,0.04637314]
[1749880119713,6.8027,146.94,146.93,0.04637314]
[1749880120904,6.8041,146.91,146.88,33.26]
[1749880121114,8.67109649,146.91,146.88,33.26]
[1749880121310,8.67109649,146.91,146.88,40.0652]
[1749880121814,1.86699649,146.9,146.88,33.3083712]
[1749880122117,1.86699649,146.89,146.88,0.0483712]
[1749880122313,8.67199649,146.89,146.88,0.0483712]
[1749880123019,1.86699649,146.9,146.88,0.0483712]
[1749880123521,8.67179649,146.9,146.88,0.0483712]
[1749880124018,6.805,146.89,146.88,0.0483712]
[1749880125712,0.04416683,146.91,146.88,1.91536769]
[1749880125912,1.86699649,146.97,146.9,1.86699649]
[1749880126112,1.86699649,146.97,146.89,33.26]
[1749880126113,1.86699649,146.97,146.92,1.86699649]
[1749880126313,6.802,146.96,146.93,1.86699649]
[1749880126514,1.86699649,146.97,146.93,1.86699649]
[1749880126720,8.66829649,146.97,146.93,8.66969649]
[1749880126920,8.66829649,146.97,146.94,0.04472207]
[1749880127319,8.66829649,146.97,146.94,6.84732207]
[1749880127720,6.8013,146.97,146.94,6.84732207]
[1749880128315,1.86699649,146.98,146.94,6.84732207]
[1749880128316,8.66779649,146.98,146.95,6.802]
[1749880128720,6.8008,146.98,146.95,6.802]
[1749880130314,6.8008,146.98,146.96,6.8016]
[1749880130624,6.8008,146.98,146.94,0.04472207]
[1749880131526,6.8008,146.98,146.95,6.8018]
[1749880132527,6.8012,146.97,146.94,6.84712207]
[1749880138130,38.44668044,147.01,146.94,6.84712207]
[1749880138830,6.8016,146.97,146.94,6.84712207]
[1749880141134,6.8017,146.96,146.94,6.84712207]
[1749880141323,38.44668044,147.01,146.94,6.84712207]
[1749880141526,2.6462057,147.0,146.94,6.84712207]
[1749880141731,38.44668044,147.01,146.94,6.84712207]
[1749880141932,7.35158724,147.0,146.94,6.84712207]
[1749880142229,38.44668044,147.01,146.94,6.84712207]
[1749880142435,7.35906139,147.0,146.94,6.84712207]
[1749880142627,4.70526053,146.99,146.94,6.84712207]
[1749880142822,38.44668044,147.01,146.94,6.84712207]
[1749880143026,7.3590854,147.0,146.94,6.84712207]
[1749880143237,38.44668044,147.01,146.94,6.84712207]
[1749880143435,7.3587668,147.0,146.94,6.84712207]
[1749880143732,6.8013,146.97,146.94,6.84712207]
[1749880144130,38.44668044,147.01,146.95,6.8021]
[1749880144435,4.70490167,147.0,146.97,0.04906041]
[1749880144629,4.70490167,146.99,146.97,0.04906041]
[1749880144822,6.8008,146.98,146.97,0.04906041]
[1749880158643,1.8655484,146.98,146.91,33.36]
[1749880158935,1.86747021,146.92,146.88,35.22747021]
[1749880159245,6.8039,146.91,146.88,42.03227021]
[1749880159636,6.84965755,146.91,146.88,35.27246482]
[1749880159842,0.04575755,146.91,146.89,8.67167021]
[1749880160230,0.04575755,146.91,146.89,1.86747021]
[1749880160434,0.04575755,146.91,146.9,8.67157021]
[1749880161345,33.36,146.96,146.92,6.803]
[1749880161532,5.19145027,146.98,146.92,6.803]
[1749880162138,6.8018,146.96,146.92,6.803]
[1749880162340,5.19145027,146.98,146.93,0.05031793]
[1749880162743,6.802,146.95,146.93,0.05031793]
[1749880163644,6.8015,146.96,146.93,0.05031793]
[1749880165041,6.8011,146.97,146.93,0.05031793]
[1749880165946,6.8014,146.96,146.93,0.05031793]
[1749880167847,6.8014,146.96,146.93,6.85281793]
[1749880168440,6.8014,146.96,146.93,9.7691682]
[1749880169743,6.8011,146.97,146.94,6.8023]
[1749880173751,6.8015,146.96,146.93,9.7692682]
[1749880173947,2.246,147.0,146.93,2.9666682]
[1749880174249,2.91635027,146.97,146.93,0.05031793]
[1749880174446,2.65920315,146.96,146.93,0.05031793]
[1749880174649,6.8024,146.94,146.93,0.05031793]
[1749880179537,11.51518198,146.94,146.93,0.05031793]
[1749880179737,11.51518198,146.94,146.93,1.793e-05]
[1749880179948,17.08933119,146.94,146.93,1.793e-05]
[1749880180156,14.43153225,146.94,146.93,1.793e-05]
[1749880180446,17.08604374,146.94,146.93,1.793e-05]